Cogmind - Beta 15 @@@ ROGUE MODE // 2025.08.21 @ 12:49:06 Player: LymphNodeJones Result: Destroyed by 6U-EV5(R) with Subdweller Machine Gun Performance ------------- Evolutions (0) 0 Regions Visited (2) 400 Robots Destroyed (2) 10 Value Destroyed (81) 81 Prototype IDs (0) 0 Alien Tech Used (0) 0 Bonus (0) 0 TOTAL SCORE: 491 Bonus ------- None Cogmind --------- Core Integrity 0/250 Matter 275/300 Energy 100/100 System Corruption 0% Temperature Cool (0) Movement Walking (120) Location -10/Subcaves Parts ------- > --- POWER (1) -------- (None) > --- PROPULSION (2) --- Aluminum Leg > --- UTILITY (2) ------ Seismic Detector > --- WEAPON (2) ------- (None) > --- INVENTORY (5) ---- Light Ion Engine Aluminum Leg Aluminum Leg Peak State ------------ > --- POWER ------------ Ion Engine > --- PROPULSION ------- Aluminum Leg Aluminum Leg > --- UTILITY ---------- Seismic Detector Core Shielding > --- WEAPON ----------- Particle Gun Grenade Launcher > --- INVENTORY -------- Ion Engine Light Ion Engine Aluminum Leg Aluminum Leg [Rating: 8] Favorites ----------- Power Light Ion Engine Engine Light Ion Engine Propulsion Aluminum Leg Leg Aluminum Leg Utility Core Shielding Device Seismic Detector Protection Core Shielding Weapon Assault Rifle Energy Gun Particle Gun Ballistic Gun Assault Rifle Launcher Grenade Launcher Build | -11 -10 -10 ------- Run | Yrd Mat Sub Slots Evolved . | . . . Power . | . . . Propulsion . | . . . Utility . | . . . Weapon . | . . . Parts Attached 10 | 4 6 . Power 2 | 1 1 . Engine 2 | 1 1 . Core . | . . . Reactor . | . . . Propulsion 2 | 2 . . Treads . | . . . Leg 2 | 2 . . Wheel . | . . . Hover . | . . . Flight . | . . . Utility 2 | . 2 . Device 1 | . 1 . Storage . | . . . Processor . | . . . Hackware . | . . . Protection 1 | . 1 . Artifact . | . . . Weapon 4 | 1 3 . Energy Gun 1 | . 1 . Energy Cannon . | . . . Ballistic Gun 2 | 1 1 . Ballistic Cannon . | . . . Launcher 1 | . 1 . Special Weapon . | . . . Impact Weapon . | . . . Slashing Weapon . | . . . Piercing Weapon . | . . . Special Melee Weapon . | . . . Unidentified Prototypes . | . . . Parts Lost 5 | . . 5 Power 1 | . . 1 Propulsion 1 | . . 1 Utility 1 | . . 1 Weapon 2 | . . 2 Highest Loss Streak 5 | . . 5 To Critical Strikes . | . . . Average Backups 2 | 1 3 3 Power 1 | . 1 1 Propulsion 1 | . 1 2 Utility . | . . . Weapon . | . . . Tool/Special . | . . . Unused Backups 5 | . . 5 Power 2 | . . 2 Propulsion 2 | . . 2 Utility 1 | . . 1 Weapon . | . . . Tool/Special . | . . . Average Slot Usage (%) 84 | . 84 84 Engine 12 | . 14 8 Leg 27 | . 28 25 Device 5 | . 1 14 Protection 13 | . 12 14 Energy Gun 8 | . 5 13 Ballistic Gun 13 | . 18 . Launcher 4 | . 2 8 Peak Build Rating 8 | 4 8 8 Average Rating 5 | 3 6 6 On Entrance 4 | . 4 8 Naked Turns . | . . . Heaviest Build 13 | 5 13 13 Greatest Support 20 | 20 20 20 Greatest Overweight (x) . | . . . Average Overweight (x) . | . . . Largest Inventory Capacity 5 | 5 5 5 Average Capacity 5 | 5 5 5 Most Carried 5 | 2 5 5 Average Carried 2 | 1 3 3 Final Capacity 5 | 5 5 5 Final Carried 4 | 2 4 3 Class Distribution -------------------- 100% | Mutant Dominant Class ---------------- Mutant | -10/Materials Mutant | -10/Subcaves Resources | -11 -10 -10 ----------- Run | Yrd Mat Sub Matter Collected 261 | 190 71 . Remotely . | . . . Salvage Created 95 | . 95 . Parts 7 | . 7 . Haulers Intercepted . | . . . Recyclers Shooed . | . . . Parts Field Recycled . | . . . Retrieved Matter . | . . . Parts Self-Destructed . | . . . Prevented . | . . . Kills | -11 -10 -10 ------- Run | Yrd Mat Sub Combat Hostiles Destroyed 2 | . 2 . Guns 2 | . 2 . Classes Destroyed 1 | . 1 . Grunt 2 | . 2 . Best Kill Streak 2 | . 2 . Combat Bots Only 2 | . 2 . Max Kills in Single Turn 1 | . 1 . Gunslinging . | . . . Exploded . | . . . Melee . | . . . Uniques/NPCs Destroyed . | . . . Combat | -11 -10 -10 -------- Run | Yrd Mat Sub Hostile Shots Fired 45 | . 8 37 Missed 15 | . 1 14 Hits 30 | . 7 23 Projectile 30 | . 7 23 AOE 6 | . . 6 Damage Taken 766 | . 99 667 Core 258 | . 26 232 Absorbed by Shields . | . . . Redirected to Shielding 52 | . 6 46 Core Remaining (%) 100 | 100 . . Volleys Fired 10 | . 7 3 Largest 2 | . 2 2 Hottest 95 | . 40 95 Shots Fired 19 | . 14 5 Gun 17 | . 14 3 Cannon . | . . . Launcher 2 | . . 2 Special . | . . . Kinetic 14 | . 14 . Thermal 3 | . . 3 Explosive 2 | . . 2 Electromagnetic . | . . . Robot Hit Streak 4 | . 3 4 Robot Miss Streak 3 | . 3 1 Penetration Max . | . . . Secondary Targets . | . . . Shots Hit Robots 11 | . 7 4 Core Hits 4 | . 4 . Critical Kills . | . . . Critical Parts Destroyed . | . . . Critical Strikes . | . . . Melee Attacks . | . . . Impact . | . . . Slashing . | . . . Piercing . | . . . Sneak Attacks . | . . . Combat Hostiles . | . . . Follow-up Attacks . | . . . Damage Inflicted 163 | . 82 81 Guns 117 | . 82 35 Cannons . | . . . Explosions 46 | . . 46 Melee . | . . . Ramming . | . . . Kinetic 82 | . 82 . Thermal 35 | . . 35 Explosive 46 | . . 46 Electromagnetic . | . . . Impact . | . . . Slashing . | . . . Piercing . | . . . Highest Corruption . | . . . Average Corruption . | . . . Corruption Purged . | . . . Corruption Blocked . | . . . Overload Shots . | . . . Overflow Damage . | . . . Projectiles . | . . . Explosions . | . . . Melee . | . . . Knockbacks . | . . . Impact . | . . . Kinetic . | . . . Secondary . | . . . Self-Inflicted Damage . | . . . Shots . | . . . Rammed . | . . . Targets Rammed . | . . . Kicked . | . . . Crushed . | . . . Highest Temperature 18 | . 18 1 Average Temperature 8 | . 9 1 Received Heat Transfer 120 | . 57 63 Siege Activations . | . . . Martial Activations . | . . . Shielding Activations . | . . . Robots Disrupted . | . . . Combat Hostiles . | . . . Robots Corrupted . | . . . Combat Hostiles . | . . . Parts Fried . | . . . Impact Corruptions . | . . . Robots Melted . | . . . Combat Hostiles . | . . . Parts Melted . | . . . Heat Transferred 74 | . . 74 Parts Sabotaged . | . . . Parts Stolen . | . . . Parts Stripped . | . . . Power Chain Reactions . | . . . Alert | -11 -10 -10 ------- Run | Yrd Mat Sub Maximum Alert Level . | . . . Low Security (%) 100 | 100 100 . Level 1 . | . . . Level 2 . | . . . Level 3 . | . . . Level 4 . | . . . Level 5 . | . . . High Security . | . . . Max Security . | . . . Peak Influence 50 | . 50 . Initial . | . . . Average 5 | . 8 . Influence Increases 51 | . 51 . Destroy 0b10 Robot/C 40 | . 40 . Destroy Leader 10 | . 10 . Successful Hack 1 | . 1 . Influence Decreases 51 | . 51 . Time Decay 51 | . 51 . Squads Dispatched . | . . . Investigation . | . . . Extermination . | . . . Reinforcement . | . . . Assault . | . . . Garrison . | . . . Intercept . | . . . Searches Triggered . | . . . Construction Impeded . | . . . Haulers Reinforced . | . . . Active Scanning Responses . | . . . Cargo Convoy Interrupts . | . . . Stealth | -11 -10 -10 --------- Run | Yrd Mat Sub Distress Signals . | . . . Communications Jammed . | . . . Distress Signals . | . . . Times Spotted 13 | . 4 9 Peak Tracking Total 8 | . 3 8 Tactical Retreats . | . . . Traps | -11 -10 -10 ------- Run | Yrd Mat Sub Traps Triggered . | . . . Indirectly . | . . . Trap Hack Attempts . | . . . Triggered . | . . . Disarmed . | . . . Reprogrammed . | . . . Reused . | . . . Traps Extracted . | . . . Installed . | . . . Triggered . | . . . Machines | -11 -10 -10 ---------- Run | Yrd Mat Sub Machines Disabled . | . . . Max in Single Turn . | . . . Machines Repaired . | . . . Machines Dismantled . | . . . Machines Sabotaged . | . . . Overloaded Fab Kills . | . . . Hacking | -11 -10 -10 --------- Run | Yrd Mat Sub Machines Accessed 1 | . 1 . Terminals . | . . . Fabricators . | . . . Repair Stations . | . . . Recycling Units 1 | . 1 . Scanalyzers . | . . . Garrison Access . | . . . Total Hacks 3 | . 3 . Successful 3 | . 3 . Failed . | . . . Catastrophic . | . . . Database Lockouts . | . . . Manual . | . . . Terminals . | . . . Fabricators . | . . . Repair Stations . | . . . Recycling Units 3 | . 3 . Scanalyzers . | . . . Garrison Access . | . . . Terminal Hacks . | . . . Fabricator Hacks . | . . . Repair Station Hacks . | . . . Recycling Unit Hacks 3 | . 3 . Recycle Component 1 | . 1 . Process 1 | . 1 . Retrieve Matter 1 | . 1 . Scanalyzer . | . . . Garrison Access Hacks . | . . . Unauthorized Hacks . | . . . Terminals . | . . . Fabricators . | . . . Repair Stations . | . . . Recycling Units . | . . . Scanalyzers . | . . . Garrison Access . | . . . Data Cores Recovered . | . . . Used . | . . . Hacking Detections 1 | . 1 . Full Trace Events . | . . . Feedback Events . | . . . Feedback Blocked . | . . . Robot Schematics Acquired . | . . . Robots Built . | . . . Authchips . | . . . Time . | . . . Total Robot Build Rating . | . . . Part Schematics Acquired . | . . . Parts Built . | . . . Authchips . | . . . Time . | . . . Total Part Build Rating . | . . . Parts Repaired . | . . . Time . | . . . Parts Recycled 1 | . 1 . Recycled Matter 47 | . 47 . Retrieved Matter 47 | . 47 . Retrieved Components . | . . . Parts Scanalyzed . | . . . Part Schematics Acquired . | . . . Parts Damaged . | . . . Bothacking | -11 -10 -10 ------------ Run | Yrd Mat Sub Used RIF Installer . | . . . Robots Hacked . | . . . Non-combat . | . . . Combat . | . . . Robot Hacks Applied . | . . . Relay Couplers Released . | . . . Fabnet Peak Effective % . | . . . Robots Rewired . | . . . Allies Hacked . | . . . Hacks Repelled . | . . . Allies | -11 -10 -10 -------- Run | Yrd Mat Sub Total Allies . | . . . Largest Group . | . . . Highest-Rated Group . | . . . Highest-Rated Ally . | . . . Total Orders . | . . . Ally Attacks . | . . . Total Damage . | . . . Kills . | . . . Allies Corrupted . | . . . Allies Melted . | . . . Intel | -11 -10 -10 ------- Run | Yrd Mat Sub Active Infowar (turns) 179 | . 40 139 Seismic 179 | . 40 139 Robot Analysis Total . | . . . Derelict Logs Recovered . | . . . Drone Launches . | . . . Drone Recoveries . | . . . Exploration | -11 -10 -10 ------------- Run | Yrd Mat Sub Turns Passed 609 | 129 339 141 Spaces Moved 331 | 45 179 107 Core 9 | 9 . . Treads . | . . . Legs 322 | 36 179 107 Wheels . | . . . Hover . | . . . Flight . | . . . Fastest Speed 50 | 50 120 120 Average Speed 118 | 106 120 120 Slowest Speed 120 | 120 120 120 Overloaded Moves . | . . . Propulsion Burnouts . | . . . Robots Hopped . | . . . Potential Cave-ins . | . . . Cave-ins Triggered . | . . . Exploration Rate (%) 11 | 5 20 9 Regions Visited 2 Branch Regions 1 Pre-discovered Areas . | . . . Known Exits Taken . | . . . Unknown Exits Taken 2 | 1 1 . Scrap Searched . | . . . Spaces Dug . | . . . Terrain Destroyed 7 | . . 7 Melee . | . . . Projectile . | . . . AOE 7 | . . 7 Terrain Rammed . | . . . Walls Destroyed . | . . . Machines Disabled . | . . . Actions | -11 -10 -10 --------- Run | Yrd Mat Sub Total 534 | 126 292 116 Wait 159 | 72 87 . Move 329 | 44 178 107 Hop . | . . . Pick Up 18 | 6 10 2 Fast Attach . | . . . Attach 11 | 4 6 1 Detach . | . . . Swap . | . . . Drop 7 | . 4 3 Fire 10 | . 7 3 Melee . | . . . Ram . | . . . Kick . | . . . Crush . | . . . Escape Stasis . | . . . Rewire . | . . . Trap . | . . . Miscellaneous . | . . . Route ------- -11/Scrapyard -10/Materials -10/Subcaves History --------- Turn | Location | Event 4 | -11/Scrapyard | Discovered new exit (range 16) 130 | -11/Scrapyard | Entered Materials 310 | -10/Materials | Build established: Mutant 460 | -10/Materials | Discovered new exit (range 6) 469 | -10/Materials | Entered Subcaves 470 | -10/Subcaves | Approached by a straggling Scientist 486 | -10/Subcaves | Shifting Twisted Machinery released Piercing Trap 547 | -10/Subcaves | Ambushed by swarm of Subdwellers 554 | -10/Subcaves | Core integrity fell below 50% 594 | -10/Subcaves | Core integrity fell below 20% 596 | -10/Subcaves | Lost 5 allies 610 | -10/Subcaves | Destroyed by 6U-EV5(R) with Subdweller Machine Gun Last Messages --------------- 00552_ 6U-EV5(R) emerges from the Twisted Machinery. 00552_ T1-KDT(g): "Sorry we're late! Had another grouchy Sub to deal with. Who's the new fellow?" 00553_ Subatomizers dissect the Machine Analyzer. 00553_ Y-45 Defender destroyed. 00554_ ZX-MYY(R) emerges from the Twisted Machinery. 00554_ Ion Engine destroyed. 00555_ MT-XRK(g) destroyed. 00557_ 2L-OPQ(R): "ARGHSUB!" 00557_ T1-KDT(g) destroyed. 00560_ RL-LX1(R) destroyed. 00565_ JG-DXD(g) destroyed. 00581_ Aluminum Leg destroyed. 00606_ Particle Gun destroyed. 00607_ Subatomizers dissect the Myomer Leg. 00610_ Core Shielding destroyed. Map ----- +----------------------------------------------------+ | ?????????????????????????????????????????????????? | | ?????????????????????????????????????????????????? | | ?????????????????????????????????????????????????? | | ?????????????????????????????????????????????????? | | ????????????????????????????????? ?????????????? | | ??????????????????????????????? ?????????????? | | ???????????????????????????? ? ?????????????? | | ??????????????????????????? ??#??????????? | | ??????????????????????????? ## ??????????? | | ?????????????????????? ???# ??????????? | | ????????????????????? ??"" #??????????? | | ?????????????????????? #?"" ##?????????? | | ?????????????????????? ## ##????????? | | ??????????????????????? # % ? ##??###### | | ??????????????????????? ! ???# ##?# # | | ??????????????? ??????## %! ????# ### | | ???????????????# ???### ! ##???## ## | | ??????????????## ??# #??## # | | ??????????????# #?# #### | | ??????????????# ## # ### # | | ????????????? # #; =% ## ##?## ### # | | ???????????# # ##???###### # | | ?????????????# ; ####??????# ## | | ?????????????# ## % = #?????? #? | | ?????????????##?????# [%= ##????##" #? | | ??????????????????### @ % ;# ##???? ""#? | | ?????????????????## ;## #???##&"#? | | ????????????????## ;## #???? ? | | ???????????????## ;# #????# ? | | ???????????????# R ;## #????# ? | | ???????????????# R #### #???? ? | | ???????????????## R ;# ##?## #???? ??? | | ????????????????# R;# ###R #??# #????? ??? | | ???????????????## R####?##R ###??# ##????????? | | ???????????????# ##??## ####?###?????????? | | ???????????????# #### #?????????????? | | ???????????????## ## ##????????????? | | ????????????????#### #????????????? | | ???????????????????## #????????????? | | ???????????????????## ### #????????????? | | ???????????????????# ####### ##????????????? | | ???????????????????# #?????###?????????????? | | ???????????????????## ######?????????????????????? | | ????????????????????###??????????????????????????? | | ?????????????????????????????????????????????????? | | ?????????????????????????????????????????????????? | | ?????????????????????????????????????????????????? | | ?????????????????????????????????????????????????? | | ?????????????????????????????????????????????????? | | ?????????????????????????????????????????????????? | +----------------------------------------------------+ Best States ------------- Heat Dissipation 25 Energy Generation 10 Energy Capacity 250 Matter Stores 300 Matter Capacity 300 Sight Range 16 Terrain Scan Density 10 Core Shielding 20 Evasion (%) 55 Item Schematics ----------------- None Robot Schematics ------------------ None Fabricated ------------ Nothing Repaired ---------- Nothing Alien Tech Used ----------------- None Achievements -------------- None Challenges ------------ None Game ------ Seed ArcsightDamperImmobilizer Manual? 0 Play Time 00:11:01 Cumulative 2.2 hours Start 2025.08.21 @ 12:38:12 End 2025.08.21 @ 12:49:06 Sessions 1 Manual Loads 0 Difficulty Rogue Special Mode None Game No. 3 Rogue 3 Adventurer 0 Explorer 0 Win Type - Total 0 Types 0/0/0/0/0/0/0/0/0/0 Lore% 0 Gallery% 5 Achievement% 11 Wizard Run 0 Options --------- Layout 1 ASCII 0 Keyboard 0 Movement Mouse Keybinds 0 Fullscreen 1 Font 24/Smallcaps Map View 25x17 Zoom Use 95% Tactical HUD 1 Map Filters NONE Filters NONE Steam 1 RUN: 151a69c7-56dc-4b09-977c-a8ff8e3cffec